Department Family,Entity,Date of Payment,Expense Type,Expense Area,Supplier,Transaction Number,Item Text,Amount
MHCLG,PINS,06/01/2020,Training,Human Resources,WWW.KPMG.CO.UK,1000002387,KPMG - Investigations,824.40
MHCLG,PINS,06/01/2020,Training,Human Resources,WWW.KPMG.CO.UK,1000002387,KPMG - Success Profiles,"4,800.00"
MHCLG,PINS,07/01/2020,Conferences and Meeting Facilities,Infrastructure Planning,IW GROUP SERVICES (UK),1000002388,Room hire for project meeting,276.00
MHCLG,PINS,07/01/2020,Conferences and Meeting Facilities,NSI Expenses Planning,IW GROUP SERVICES (UK),1000002393,Room Hire,"1,217.16"
MHCLG,PINS,07/01/2020,Office Supplies,Business Support,SP   PAPERDRY STORE,1000002394,Paperdry Clipboards,424.79
MHCLG,PINS,07/01/2020,Training,Infrastructure Planning,WWW.KPMG.CO.UK,1000002389,Presenting Confidently,380.40
MHCLG,PINS,07/01/2020,Training,Infrastructure Planning,WWW.KPMG.CO.UK,1000002389,Agile Project Management Foundation,722.40
MHCLG,PINS,07/01/2020,Training,Human Resources,WWW.KPMG.CO.UK,1000002390,CSLearning Success Profiles workshops,"7,200.00"
MHCLG,PINS,07/01/2020,Special Bonuses -Permanent Staff,Human Resources,EDENRED UK,1000002391,Comp Vouchers,"2,032.00"
MHCLG,PINS,09/01/2020,Communication Telecom Costs,ICT Digital Services,BT BILL PAYMENT 2,1000002397,BT ADSL VP 2871,365.44
MHCLG,PINS,09/01/2020,"IT - PC, Network & Hardware",ICT Digital Services,AMAZON.CO.UK 3B57P01R5,1000002396,HP OfficeJet 6950 printers,"1,334.70"
MHCLG,PINS,09/01/2020,Training,ICT Digital Services,PAYPAL  BEYONDHRCON,1000002397,Beyond HR Consulting - Coaching,"6,600.00"
MHCLG,PINS,10/01/2020,Welfare,ICT Digital Services,CMC PARTNERSHIP,1000002398,Prosci change management practitioner (RH),"2,450.00"
MHCLG,PINS,10/01/2020,Training,ICT Digital Services,QA LIMITED / QA.CO,1000002398,QA MS Azure devops certificates(RC),"4,037.00"
MHCLG,PINS,17/01/2020,"IT - PC, Network & Hardware",ICT Digital Services,WWW.UK.INSIGHT.COM,1000002402,Insight Phillips monitors,"2,262.02"
MHCLG,PINS,17/01/2020,Training,ICT Digital Services,INFORMATION TECHNOLOGY,1000002403,Tech UK Winning Demos Masterclass (PT),535.50
MHCLG,PINS,17/01/2020,Training,ICT Digital Services,PAYPAL  BEYONDHRCON,1000002403,Beyond HR Consulting - senior leadership training,"6,600.00"
MHCLG,PINS,17/01/2020,Training,ICT Digital Services,QA LIMITED / QA.CO,1000002403,QA BCS interm cert in enter + sol architecture(CT),"1,794.00"
MHCLG,PINS,17/01/2020,Training,Director of Volume Casework,WEBPAYMENTS BRISTOL,1000002404,Urban and Rural Planning - FL,"2,625.00"
MHCLG,PINS,17/01/2020,Training,ICT Digital Services,WWW.QA.COM,1000002403,QA BCS cert in modelling business processes (TR),"1,610.00"
MHCLG,PINS,17/01/2020,Special Bonuses -Permanent Staff,Human Resources,EDENRED UK,1000002401,Comp Vouchers,"2,032.00"
MHCLG,PINS,22/01/2020,Training,Inspector Costs,WWW.WESTMINSTER-BRIEFI,1000002407,Training Course,306.00
MHCLG,PINS,23/01/2020,Office Machinery (<5000),Infrastructure Planning,RS COMPONENTS,1000002411,Sound meter,772.75
MHCLG,PINS,23/01/2020,Training,Environmental Services (EIA),PTRC-TRAINING.CO.U,1000002410,Training course,475.00
MHCLG,PINS,23/01/2020,Training,Environmental Services (EIA),PTRC-TRAINING.CO.U,1000002410,Training course,475.00
MHCLG,PINS,23/01/2020,Training,Environmental Services (EIA),WP-HR WALLINGFORD,1000002410,Training course,299.00
MHCLG,PINS,23/01/2020,Training,Human Resources,WWW.KPMG.CO.UK,1000002409,CSL - Success Profiles workshop,"2,000.00"
MHCLG,PINS,23/01/2020,Training,Human Resources,WWW.KPMG.CO.UK,1000002409,CSL - Success Profiles workshop,"2,000.00"
MHCLG,PINS,23/01/2020,Training,Human Resources,WWW.KPMG.CO.UK,1000002409,CSL - Success Profiles workshop,"2,000.00"
MHCLG,PINS,23/01/2020,Training,Infrastructure Planning,WWW.KPMG.CO.UK,1000002410,Training course,594.00
MHCLG,PINS,23/01/2020,Training,Infrastructure Planning,WWW.KPMG.CO.UK,1000002410,Training course,380.40
MHCLG,PINS,27/01/2020,Publications,Customer & Communications,AMZNMKTPLACE,1000002413,"LED video light, memory card, DJI Ronin kit, iLigh","1,269.98"
MHCLG,PINS,28/01/2020,Training,ICT Digital Services,QA LIMITED / QA.CO,1000002414,QA BCS cert in modelling business processes (NH),"1,610.00"
MHCLG,PINS,28/01/2020,Training,ICT Digital Services,QA LIMITED / QA.CO,1000002414,QA BCS cert in modelling business processes (AB),"1,610.00"
MHCLG,PINS,28/01/2020,Training,ICT Digital Services,QA LIMITED / QA.CO,1000002414,QA BCS interm cert in enter + sol architecture(CN),"1,794.00"
MHCLG,PINS,29/01/2020,Training,Infrastructure Planning,SQUAREONE TRAINING,1000002415,Excel Training,"2,780.00"
MHCLG,PINS,29/01/2020,Special Bonuses -Permanent Staff,Human Resources,EDENRED UK,1000002415,Comp Vouchers,"2,032.00"
MHCLG,PINS,30/01/2020,Training,Infrastructure Planning,PAYPAL  RTPI,1000002417,"Flooding, sustainable drainage and climate change",305.00
MHCLG,PINS,30/01/2020,Training,Infrastructure Planning,WP-HR WALLINGFORD,1000002417,Introduction to flood risk analysis and management,600.00
MHCLG,PINS,31/01/2020,Web Services,ICT Digital Services,WWW.MONITIS.COM,1000002418,Monitis web performance monitoring tool,447.79
